bitfinex-derivatives/quotes_BTCF0:USTF0_20241021
["timestamp","ask_amount","ask_price","bid_price","bid_amount"]
[1729539253997,0.076055,67534.0,67533.0,0.074056]
[1729539254200,0.07405,67539.0,67538.0,0.07405]
[1729539254400,0.074054,67536.0,67535.0,0.074054]
[1729539255601,0.1919681,67640.0,67535.0,0.3608]
[1729539255801,0.207359,67549.0,67542.0,0.3608]
[1729539256007,0.207359,67549.0,67542.0,0.434845]
[1729539256008,0.074045,67543.0,67542.0,0.434845]
[1729539257599,0.077045,67543.0,67542.0,0.434845]
[1729539257806,0.077045,67543.0,67542.0,0.074045]
[1729539258005,0.003,67543.0,67542.0,0.074045]
[1729539259017,0.005,67543.0,67542.0,0.074045]
[1729539261316,0.074037,67551.0,67550.0,0.074037]
[1729539262203,0.074037,67551.0,67550.0,0.07866699]
[1729539263211,0.084037,67551.0,67550.0,0.07866699]
[1729539263612,0.084037,67551.0,67550.0,0.07966699]
[1729539264601,0.084037,67551.0,67550.0,0.00562999]
[1729539264907,0.074037,67551.0,67550.0,0.00662999]
[1729539267117,0.074037,67551.0,67550.0,0.00563049]
[1729539267311,0.074037,67551.0,67550.0,0.00663049]
[1729539267711,0.074037,67551.0,67550.0,0.00563049]
[1729539268208,0.074037,67551.0,67550.0,0.001]
[1729539268607,0.36302099,67552.0,67542.0,0.074046]
[1729539268608,0.074046,67543.0,67542.0,0.074046]
[1729539268808,0.074046,67543.0,67542.0,0.16603401]
[1729539269113,0.074046,67543.0,67542.0,0.09198801]
[1729539269820,0.074046,67543.0,67542.0,0.09939715]
[1729539270320,0.075046,67543.0,67542.0,0.10339715]
[1729539270821,0.075046,67543.0,67542.0,0.18211541]
[1729539271124,0.076046,67543.0,67542.0,0.27413945]
[1729539271509,0.076046,67543.0,67542.0,0.27313945]
[1729539271510,0.075046,67543.0,67542.0,0.27313945]
[1729539271816,0.075046,67543.0,67542.0,0.26673031]
[1729539271817,0.076046,67543.0,67542.0,0.26673031]
[1729539272208,0.076046,67543.0,67542.0,0.19268431]
[1729539272615,0.076046,67543.0,67542.0,0.17864642]
[1729539273707,0.436846,67543.0,67542.0,0.26666387]
[1729539273908,0.436846,67543.0,67542.0,0.27407304]
[1729539274218,0.436846,67543.0,67542.0,0.18605559]
[1729539274515,0.076046,67543.0,67542.0,0.18605559]
[1729539274713,0.002,67543.0,67542.0,0.18605559]
[1729539274919,0.002,67543.0,67542.0,0.26666402]
[1729539275111,0.002,67543.0,67542.0,0.17864657]
[1729539275714,0.002,67543.0,67542.0,0.28278557]
[1729539275919,0.002,67543.0,67542.0,0.65099418]
[1729539276816,0.1414,67555.0,67542.0,0.65099418]
[1729539276817,0.074036,67551.0,67550.0,0.074037]
[1729539277011,0.074036,67551.0,67550.0,0.08607625]
[1729539278014,0.079036,67551.0,67550.0,0.07866764]
[1729539278424,0.079036,67551.0,67550.0,0.16582504]
[1729539278722,0.005,67551.0,67550.0,0.16582504]
[1729539278926,0.005,67551.0,67550.0,0.24382504]
[1729539279821,0.005,67551.0,67550.0,0.28322504]
[1729539280920,0.002,67551.0,67550.0,0.28322504]
[1729539281126,0.00222099,67552.0,67551.0,0.074036]
[1729539281324,0.00222099,67552.0,67551.0,0.16582404]
[1729539282125,0.00222099,67552.0,67551.0,0.16582311]
[1729539282326,0.00322099,67552.0,67551.0,0.16582311]
[1729539283321,0.00322099,67552.0,67551.0,0.1373214]
[1729539283522,0.00422099,67552.0,67551.0,0.1373214]
[1729539284515,0.00422099,67552.0,67551.0,0.07866571]
[1729539285926,0.00422099,67552.0,67551.0,0.074036]
[1729539286220,0.00422099,67552.0,67551.0,0.07866572]
[1729539287026,0.00422099,67552.0,67551.0,0.43946572]
[1729539287626,0.002,67552.0,67551.0,0.43946572]
[1729539293944,0.002,67552.0,67551.0,0.43946528]
[1729539294249,0.002,67552.0,67551.0,0.43946546]
[1729539294450,0.002,67552.0,67551.0,0.434836]
[1729539295237,0.002,67552.0,67551.0,0.43946561]
[1729539296245,0.076035,67552.0,67551.0,0.43946561]
[1729539296657,0.002,67552.0,67551.0,0.43946561]
[1729539297953,0.002,67552.0,67551.0,0.80026561]
[1729539298347,0.002,67552.0,67551.0,0.88723197]
[1729539300067,0.002,67552.0,67551.0,0.16563197]
[1729539300351,0.002,67552.0,67551.0,0.5127204]
[1729539300548,0.002,67552.0,67551.0,0.52653569]
[1729539300950,0.002,67552.0,67551.0,0.52653567]
[1729539301550,0.076035,67552.0,67551.0,0.09169967]
[1729539301748,0.076035,67552.0,67551.0,0.00462959]
[1729539302063,0.520155,67552.0,67551.0,0.00462959]
[1729539302259,0.61736,67552.0,67549.0,0.04399109]
[1729539302460,0.61736,67552.0,67544.0,0.05864768]
[1729539302461,0.074038,67549.0,67544.0,0.05864768]
[1729539302660,0.3608,67545.0,67543.0,0.05864768]
[1729539302963,0.074044,67544.0,67543.0,0.05864768]
[1729539303355,0.074044,67544.0,67533.0,0.16205801]
[1729539303356,0.074044,67544.0,67542.0,0.05864768]
[1729539303556,0.074045,67543.0,67542.0,0.05864768]
[1729539304255,0.07405,67539.0,67536.0,0.00774741]
[1729539304461,0.07405,67539.0,67535.0,0.07327876]
[1729539304657,0.07405,67539.0,67536.0,0.23483397]
[1729539304966,0.074052,67537.0,67536.0,0.14733176]
[1729539305152,0.074052,67537.0,67536.0,0.074053]
[1729539305352,0.002,67544.0,67532.0,0.0374]
[1729539305553,0.002,67544.0,67535.0,0.074053]
[1729539305756,0.074051,67538.0,67537.0,0.074052]
[1729539307055,0.075051,67538.0,67537.0,0.079052]
[1729539307854,0.076051,67538.0,67537.0,0.081052]
[1729539308258,0.076051,67538.0,67537.0,0.007]
[1729539308754,0.436851,67538.0,67537.0,0.007]
[1729539308951,0.076051,67538.0,67537.0,0.007]
[1729539309760,0.436851,67538.0,67537.0,0.007]
[1729539312862,0.076051,67538.0,67537.0,0.007]
[1729539313166,0.076051,67538.0,67537.0,0.01440966]
[1729539314262,0.076051,67538.0,67537.0,0.01904079]
[1729539314458,0.076051,67538.0,67537.0,0.01904097]
[1729539314768,0.076051,67538.0,67537.0,0.01904091]
[1729539314957,0.076051,67538.0,67537.0,0.08568314]
[1729539315358,0.002,67538.0,67537.0,0.1728927]
[1729539315765,0.002,67538.0,67537.0,0.2141927]
[1729539316064,0.074041,67547.0,67544.0,0.074044]
[1729539316265,0.074042,67546.0,67544.0,0.074044]
[1729539316464,0.3608,67551.0,67544.0,0.074044]
[1729539316667,0.074043,67545.0,67544.0,0.074044]
[1729539316873,0.3687022,67551.0,67544.0,0.00463045]
[1729539317074,0.074038,67549.0,67548.0,0.05849195]
[1729539317959,0.074039,67548.0,67547.0,0.05849195]
[1729539318365,0.074039,67548.0,67547.0,0.00463046]
[1729539318674,0.074039,67548.0,67547.0,0.05850273]
[1729539319165,0.074039,67548.0,67547.0,0.00463055]
[1729539319858,0.075039,67548.0,67547.0,0.00463055]
[1729539320257,0.075039,67548.0,67547.0,0.06313871]
[1729539320464,0.075039,67548.0,67547.0,0.00463055]
[1729539320666,0.076039,67548.0,67547.0,0.00463055]
[1729539321063,0.076039,67548.0,67547.0,0.06314801]
[1729539321470,0.074046,67542.0,67541.0,0.00786493]
[1729539321658,0.074046,67542.0,67541.0,0.09182845]
[1729539322264,0.074045,67544.0,67543.0,0.074044]
[1729539322465,0.074045,67544.0,67543.0,0.23896068]
[1729539322772,0.074045,67544.0,67543.0,0.16580109]
[1729539323467,0.074045,67544.0,67543.0,0.16880109]
[1729539323679,0.3608,67551.0,67543.0,0.17180109]
[1729539323974,0.074036,67551.0,67550.0,0.074037]
[1729539324175,0.00222121,67552.0,67551.0,0.074036]
[1729539324371,0.00222121,67552.0,67551.0,0.13138727]
[1729539324570,0.00222121,67552.0,67551.0,0.20542327]
[1729539325373,0.07625621,67552.0,67551.0,0.13138727]
[1729539326166,0.07625621,67552.0,67551.0,0.20455478]
[1729539326363,0.08125621,67552.0,67551.0,0.11879796]
[1729539326658,0.08625621,67552.0,67551.0,0.11879796]
[1729539327469,0.08625621,67552.0,67551.0,0.13244747]
[1729539327671,0.08625621,67552.0,67551.0,0.14023288]
[1729539328373,0.08625621,67552.0,67551.0,0.05341586]
[1729539331074,0.08625621,67552.0,67551.0,0.04878541]
[1729539331274,0.08625621,67552.0,67551.0,0.0534153]
[1729539331869,0.08625621,67552.0,67551.0,0.1274513]
[1729539332769,0.01222121,67552.0,67551.0,0.1274513]
[1729539333371,0.08625621,67552.0,67551.0,0.1274513]
[1729539334181,0.08625621,67552.0,67551.0,0.0534153]
[1729539335776,0.08625621,67552.0,67551.0,0.12282141]
[1729539335976,0.08625621,67552.0,67551.0,0.12745113]
[1729539337279,0.08625621,67552.0,67551.0,0.18598303]
[1729539337674,0.08625621,67552.0,67551.0,0.18601909]
[1729539338175,0.08625621,67552.0,67551.0,0.12745113]
[1729539338374,0.08625621,67552.0,67551.0,0.05341513]
[1729539338982,0.08625621,67552.0,67551.0,0.12745113]
[1729539339390,0.08625621,67552.0,67551.0,0.48825112]
[1729539339578,0.08625621,67552.0,67551.0,0.54682682]
[1729539339884,0.002,67570.0,67562.0,0.074023]
[1729539340088,0.00759479,67570.0,67566.0,0.3608]
[1729539340278,0.074016,67570.0,67567.0,0.04412971]
[1729539340474,0.074016,67570.0,67568.0,0.00462971]
[1729539340682,0.074014,67572.0,67569.0,0.07864571]
[1729539340880,0.074014,67571.0,67570.0,0.06318229]
[1729539341075,0.0410203,67584.0,67570.0,0.00462971]
[1729539341380,0.0410203,67584.0,67571.0,0.00462971]
[1729539341574,0.0410203,67584.0,67572.0,0.00462971]
[1729539341777,0.074012,67574.0,67573.0,0.00462971]
[1729539343187,0.088011,67574.0,67573.0,0.00562832]
[1729539344293,0.102011,67574.0,67573.0,0.00662832]
[1729539345290,0.102011,67574.0,67573.0,0.01426037]
[1729539346083,0.545971,67574.0,67573.0,0.002]
[1729539346280,0.074038,67549.0,67548.0,0.00222054]
[1729539346883,0.074038,67549.0,67546.0,0.00776352]
[1729539347088,0.074048,67540.0,67534.0,0.3608]
[1729539347387,0.074038,67549.0,67534.0,0.3608]
[1729539347388,0.001,67549.0,67537.0,0.115751]
[1729539347579,0.074048,67541.0,67537.0,0.115751]
[1729539348191,0.001,67540.0,67537.0,0.125751]
[1729539348689,0.001,67540.0,67538.0,0.07405]
[1729539349492,0.002,67540.0,67539.0,0.074049]
[1729539349807,0.002,67540.0,67539.0,0.0786794]
[1729539350022,0.001,67540.0,67539.0,0.07867936]
[1729539350906,0.002,67540.0,67539.0,0.17275518]
[1729539352115,0.002,67540.0,67539.0,0.17279868]
[1729539352303,0.001,67540.0,67539.0,0.2459721]
[1729539352505,0.002,67540.0,67539.0,0.16985278]
[1729539353210,0.002,67540.0,67539.0,0.1838902]
[1729539353703,0.002,67540.0,67539.0,0.18389023]
[1729539354583,0.002,67540.0,67539.0,0.1698429]
[1729539354790,0.002,67540.0,67539.0,0.54459731]
[1729539356185,0.002,67540.0,67539.0,0.53063467]
[1729539357091,0.002,67540.0,67539.0,0.54457505]
[1729539357398,0.002,67540.0,67539.0,0.53062422]
[1729539357600,0.002,67540.0,67539.0,0.45657522]
[1729539357793,0.076048,67540.0,67539.0,0.38343027]
[1729539358296,0.002,67540.0,67539.0,0.45747927]
[1729539360199,0.002,67540.0,67539.0,0.09667927]
[1729539361600,0.002,67540.0,67539.0,0.25673576]
[1729539362201,0.002,67540.0,67539.0,0.09667927]
[1729539362704,0.076048,67540.0,67539.0,0.02263027]
[1729539362906,0.076048,67540.0,67539.0,0.09577522]
[1729539363209,0.002,67540.0,67539.0,0.25676373]
[1729539363515,0.002,67540.0,67539.0,0.1835548]
[1729539363700,0.002,67540.0,67539.0,0.25666626]
[1729539364011,0.002,67540.0,67539.0,0.1835548]
[1729539364192,0.002,67540.0,67539.0,0.09667927]
[1729539365099,0.076048,67540.0,67539.0,0.08113707]
[1729539365303,0.076048,67540.0,67539.0,0.02263027]
[1729539366999,0.076048,67540.0,67539.0,0.016]
[1729539367207,0.076048,67540.0,67539.0,0.02063077]
[1729539368302,0.075048,67540.0,67539.0,0.01363077]
[1729539368597,0.076048,67540.0,67539.0,0.016]
[1729539369299,0.076048,67540.0,67539.0,0.015]
[1729539369507,0.075048,67540.0,67539.0,0.006]
[1729539369707,0.076048,67540.0,67539.0,0.013]
[1729539370603,0.076048,67540.0,67539.0,0.006]
[1729539370807,0.076048,67540.0,67539.0,0.013]
[1729539371207,0.076048,67540.0,67539.0,0.006]
[1729539371400,0.076048,67540.0,67539.0,0.013]
[1729539371699,0.075048,67540.0,67539.0,0.007]
[1729539371903,0.076048,67540.0,67539.0,0.014]
[1729539373199,0.076048,67540.0,67539.0,0.07251664]
[1729539373411,0.076048,67540.0,67539.0,0.014]
[1729539373713,0.002,67540.0,67539.0,0.014]
[1729539373907,0.002,67540.0,67539.0,0.10149872]
[1729539374408,0.076048,67540.0,67539.0,0.10149872]
[1729539375409,0.076048,67540.0,67539.0,0.18936228]
[1729539375614,0.076048,67540.0,67539.0,0.10149872]
[1729539375809,0.076048,67540.0,67539.0,0.10170371]
[1729539376306,0.076048,67540.0,67539.0,0.18956727]
[1729539376509,0.076048,67540.0,67539.0,0.11374346]
[1729539378108,0.076048,67540.0,67539.0,0.21802246]
[1729539378305,0.076048,67540.0,67539.0,0.2181018]
[1729539378501,0.076048,67540.0,67539.0,0.11374346]
[1729539381108,0.076048,67540.0,67539.0,0.02603975]
[1729539381808,0.076048,67540.0,67539.0,0.02603933]
[1729539383411,0.076048,67540.0,67539.0,0.014]
[1729539383605,0.436848,67540.0,67539.0,0.014]
[1729539384908,0.076048,67540.0,67539.0,0.014]
[1729539385215,0.002,67540.0,67530.0,0.434859]
[1729539385401,0.074055,67534.0,67531.0,0.074058]
[1729539386713,0.075055,67534.0,67531.0,0.091058]
[1729539386913,0.076055,67534.0,67531.0,0.091058]
[1729539387417,0.076055,67534.0,67532.0,0.0046309]
[1729539387618,0.076055,67534.0,67531.0,0.091058]
[1729539387917,0.076055,67534.0,67531.0,0.017]
[1729539388115,0.076055,67534.0,67532.0,0.19271828]
[1729539388312,0.076055,67534.0,67533.0,0.19271828]
[1729539388914,0.076055,67534.0,67533.0,0.08792046]
[1729539389514,0.075055,67534.0,67533.0,0.08792046]
[1729539389920,0.076055,67534.0,67533.0,0.08792046]
[1729539390817,0.076055,67534.0,67533.0,0.01386246]
[1729539391016,0.076055,67534.0,67531.0,0.074058]
[1729539391322,0.076055,67534.0,67532.0,0.00740975]
[1729539391524,0.076055,67534.0,67533.0,0.11154678]
[1729539391723,0.076055,67534.0,67533.0,0.11159791]
[1729539391919,0.076055,67534.0,67533.0,0.00740971]
[1729539392314,0.08051075,67533.0,67531.0,0.074058]
[1729539392511,0.15456675,67533.0,67532.0,0.10424346]
[1729539392714,0.15456675,67533.0,67532.0,0.10724346]
[1729539393427,0.15556675,67533.0,67532.0,0.10724346]
[1729539394226,0.15556675,67533.0,67532.0,0.10424346]
[1729539394926,0.15556675,67533.0,67531.0,0.074058]
[1729539395918,0.10724346,67532.0,67531.0,0.074058]
[1729539396324,0.10724346,67532.0,67530.0,0.08169699]
[1729539396531,0.10724346,67532.0,67530.0,0.074059]
[1729539397525,0.10824346,67532.0,67530.0,0.074059]
[1729539397734,0.10924346,67532.0,67530.0,0.077059]
[1729539398128,0.18330046,67532.0,67530.0,0.077059]
[1729539399240,0.29054392,67532.0,67531.0,0.3608]
[1729539399735,0.21648692,67532.0,67531.0,0.879098]
[1729539400039,0.08051075,67533.0,67532.0,0.074057]
[1729539400531,0.08051075,67533.0,67532.0,0.07868747]
[1729539400929,0.08051075,67533.0,67532.0,0.15205606]
[1729539401327,0.08151075,67533.0,67532.0,0.15505606]
[1729539401734,0.08151075,67533.0,67532.0,0.08168747]
[1729539402541,0.08151075,67533.0,67532.0,0.15506644]
[1729539402839,0.08251075,67533.0,67532.0,0.15606644]
[1729539403027,0.08251075,67533.0,67532.0,0.18659174]
[1729539403640,0.08251075,67533.0,67532.0,0.03153568]
[1729539404235,0.08251075,67533.0,67532.0,0.10559268]
[1729539405636,0.08251075,67533.0,67532.0,0.074057]
[1729539405837,0.08251075,67533.0,67532.0,0.26316402]
[1729539406237,0.08251075,67533.0,67532.0,0.17656449]
[1729539406432,0.08251075,67533.0,67532.0,0.16042296]
[1729539407639,0.10274106,67532.0,67531.0,0.82410749]
[1729539407844,0.10274106,67532.0,67531.0,0.88198569]
[1729539408436,0.10274106,67532.0,67531.0,0.795658]
[1729539409541,0.10274106,67532.0,67531.0,0.80306719]
[1729539409542,0.10374106,67532.0,67531.0,0.80306719]
[1729539409844,0.10474106,67532.0,67531.0,0.80506719]
[1729539410637,0.46554106,67532.0,67531.0,0.08346719]
[1729539411146,0.46554106,67532.0,67531.0,0.0834672]
[1729539411645,0.46554106,67532.0,67531.0,0.076058]
[1729539412240,0.10474106,67532.0,67531.0,0.076058]
[1729539414255,0.46554106,67532.0,67531.0,0.076058]
[1729539414747,0.46554106,67532.0,67529.0,0.04839567]
[1729539415254,0.46554106,67532.0,67531.0,0.074058]
[1729539415650,0.46554106,67532.0,67531.0,0.07868863]
[1729539416150,0.46454106,67532.0,67531.0,0.07868863]
[1729539416351,0.46554106,67532.0,67531.0,0.07868863]
[1729539416558,0.46554106,67532.0,67531.0,0.08609781]
[1729539416853,0.46554106,67532.0,67531.0,0.01003981]
[1729539417447,0.46554106,67532.0,67531.0,0.08409781]
[1729539417752,0.46554106,67532.0,67531.0,0.07668863]
[1729539418052,0.46554106,67532.0,67531.0,0.17911446]
[1729539418851,0.46554106,67532.0,67531.0,0.16907465]
[1729539420343,0.82634106,67532.0,67531.0,0.16907465]
[1729539420646,0.46554106,67532.0,67531.0,0.16907465]
[1729539422051,0.10474106,67532.0,67531.0,0.16907465]
[1729539422455,0.46554106,67532.0,67531.0,0.16907465]
[1729539422655,0.46554106,67532.0,67531.0,0.37327666]
[1729539422656,0.10474106,67532.0,67531.0,0.37327666]
[1729539423158,0.46554106,67532.0,67531.0,0.37327666]
[1729539423357,0.10474106,67532.0,67531.0,0.47615862]
[1729539424060,0.10474106,67532.0,67531.0,0.35751999]
[1729539424856,0.10474106,67532.0,67531.0,0.47618088]
[1729539425457,0.10474106,67532.0,67531.0,0.35751999]
[1729539425851,0.10474106,67532.0,67531.0,0.47620257]
[1729539426153,0.10474106,67532.0,67531.0,0.37341519]
[1729539427356,0.3608,67536.0,67535.0,0.074054]
[1729539427556,0.3608,67536.0,67535.0,0.36493052]
[1729539427759,0.3608,67536.0,67535.0,0.82477331]
[1729539428059,0.3608,67536.0,67535.0,0.38057331]
[1729539428360,0.3608,67536.0,67535.0,0.82477331]
[1729539428553,0.3618,67536.0,67535.0,0.38057331]
[1729539428951,0.3628,67536.0,67535.0,0.82577331]
[1729539429473,0.3628,67536.0,67535.0,0.38157331]
[1729539430053,0.3628,67536.0,67535.0,0.38110593]
[1729539430659,0.002,67536.0,67535.0,0.38110593]
[1729539430956,0.002,67536.0,67535.0,0.50288725]
[1729539431257,0.002,67536.0,67535.0,0.38573584]
[1729539431464,0.002,67536.0,67535.0,0.50317767]
[1729539431765,0.0396,67547.0,67546.0,0.074042]
[1729539431955,0.00222109,67554.0,67546.0,0.26627696]
[1729539432156,0.00222109,67554.0,67553.0,0.074034]
[1729539432352,0.00222109,67554.0,67553.0,0.26626896]
[1729539433158,0.00222109,67554.0,67553.0,0.23756345]
[1729539433360,0.00222109,67554.0,67553.0,0.07866391]
[1729539433563,0.01022109,67554.0,67553.0,0.07866391]
[1729539434463,0.082033,67554.0,67553.0,0.00462991]
[1729539434953,0.082033,67554.0,67550.0,0.05861837]
[1729539434954,0.015,67554.0,67550.0,0.05861837]
[1729539435157,0.015,67554.0,67551.0,0.0046298]
[1729539435158,0.3758,67554.0,67551.0,0.0046298]
[1729539435455,0.074034,67553.0,67552.0,0.00462974]
[1729539436259,0.3698,67554.0,67552.0,0.00462974]
[1729539436454,0.3698,67554.0,67553.0,0.00462974]
[1729539436768,0.438833,67554.0,67553.0,0.06323088]
[1729539437658,0.434833,67554.0,67553.0,0.06323088]
[1729539438260,0.434833,67554.0,67553.0,0.00462974]
[1729539438464,0.449833,67554.0,67553.0,0.00462974]
[1729539438658,0.449833,67554.0,67553.0,0.05858972]
[1729539438863,0.449833,67554.0,67553.0,0.06321895]
[1729539439467,0.449833,67554.0,67553.0,0.07866323]
[1729539439468,0.3758,67554.0,67553.0,0.07866323]
[1729539440064,0.015,67554.0,67553.0,0.16322348]
[1729539440269,0.36302068,67568.0,67553.0,0.74183764]
[1729539440568,0.36302068,67568.0,67565.0,0.05852546]
[1729539440771,0.43703868,67568.0,67566.0,0.00462923]
[1729539440965,0.43703868,67568.0,67567.0,0.00462923]
[1729539441175,0.3608,67568.0,67567.0,0.16269967]
[1729539442183,0.3658,67568.0,67567.0,0.16269967]
[1729539442468,0.3658,67568.0,67567.0,0.25035153]
[1729539442873,0.012,67568.0,67567.0,0.17047091]
[1729539443069,0.3608,67570.0,67569.0,0.074016]
[1729539443269,0.3608,67570.0,67569.0,0.16269667]
[1729539444460,0.3628,67570.0,67569.0,0.16269667]
[1729539444868,0.004,67570.0,67569.0,0.25033802]
[1729539445169,0.004,67570.0,67569.0,0.16269667]
[1729539445778,0.004,67570.0,67569.0,0.16269521]
[1729539447872,0.004,67570.0,67569.0,0.23555917]
[1729539448071,0.004,67570.0,67569.0,0.16269521]
[1729539448375,0.004,67570.0,67569.0,0.07864377]
[1729539449270,0.004,67570.0,67569.0,0.074016]
[1729539450769,0.004,67570.0,67569.0,0.07864374]
[1729539451575,0.3648,67570.0,67569.0,0.07864374]
[1729539453884,0.3648,67570.0,67567.0,0.00777124]
[1729539454089,0.3648,67570.0,67560.0,0.074026]
[1729539454090,0.074018,67568.0,67560.0,0.074026]
[1729539454270,0.1122,67569.0,67561.0,0.00462865]
[1729539454477,0.3608,67562.0,67551.0,0.05364319]
[1729539454778,0.3608,67556.0,67552.0,0.13442855]
[1729539454986,0.3608,67556.0,67555.0,0.074032]
[1729539455290,0.3608,67556.0,67555.0,0.00462855]
[1729539455584,0.074024,67562.0,67561.0,0.006]
[1729539455770,0.795624,67562.0,67561.0,0.006]
[1729539455977,0.001,67556.0,67553.0,0.074033]
[1729539456277,0.001,67556.0,67554.0,0.0046293]
[1729539456476,0.001,67556.0,67552.0,0.014]
[1729539456477,0.3608,67555.0,67552.0,0.014]
[1729539456671,0.3608,67555.0,67553.0,0.00462917]
[1729539456877,0.0769,67554.0,67553.0,0.074034]
[1729539457071,0.0769,67554.0,67553.0,0.07866329]
[1729539458180,0.0779,67554.0,67553.0,0.09266329]
[1729539458778,0.0779,67554.0,67553.0,0.088034]
[1729539459082,0.0789,67554.0,67553.0,0.102034]
[1729539460882,0.4397,67554.0,67553.0,0.102034]
[1729539462685,0.4001,67554.0,67553.0,0.102034]
[1729539463282,0.4001,67554.0,67553.0,0.18681021]
[1729539463588,0.4001,67554.0,67553.0,0.19143925]
[1729539463784,0.4001,67554.0,67553.0,0.18681021]
[1729539464791,0.4001,67554.0,67553.0,0.18682381]
[1729539465484,0.4001,67554.0,67553.0,0.19145311]
[1729539465991,0.0393,67554.0,67553.0,0.19145311]
[1729539466391,0.4001,67554.0,67553.0,0.27909446]
[1729539466691,0.3628,67554.0,67553.0,0.27909446]
[1729539467087,0.3628,67554.0,67553.0,0.19145311]
[1729539467493,0.3628,67554.0,67553.0,0.19145291]
[1729539468394,0.0385,67568.0,67567.0,0.074019]
[1729539468592,0.0385,67568.0,67567.0,0.0786481]
[1729539468785,0.0385,67568.0,67567.0,0.1628323]
[1729539469583,0.0385,67568.0,67567.0,0.1638323]
[1729539469778,0.0385,67568.0,67567.0,0.0796481]
[1729539469982,0.0385,67568.0,67567.0,0.16380723]
[1729539470990,0.3628,67573.0,67567.0,0.08978823]
[1729539471188,0.3608,67573.0,67572.0,0.074013]
[1729539471495,0.3608,67573.0,67572.0,0.07864135]
[1729539471789,0.3608,67579.0,67572.0,0.07864135]
[1729539471993,0.3608,67579.0,67578.0,0.074007]
[1729539472183,0.3608,67579.0,67578.0,0.07863535]
[1729539473192,0.3648,67579.0,67578.0,0.07863535]
[1729539473898,0.3708,67579.0,67578.0,0.074007]
[1729539474886,0.3718,67579.0,67578.0,0.074007]
[1729539476294,0.3718,67579.0,67578.0,0.07863424]
[1729539476686,0.3718,67579.0,67578.0,0.074007]
[1729539476888,0.011,67579.0,67578.0,0.074007]
[1729539477089,0.011,67579.0,67578.0,0.07863386]
[1729539477495,0.011,67579.0,67578.0,0.074007]
[1729539478689,0.011,67579.0,67578.0,0.11780297]
[1729539478897,0.011,67579.0,67578.0,0.202927]
[1729539480707,0.011,67579.0,67578.0,0.074007]
[1729539480898,0.011,67579.0,67578.0,0.07863451]
[1729539481098,0.011,67579.0,67578.0,0.0786345]
[1729539484098,0.011,67579.0,67578.0,0.0046275]
[1729539484303,0.011,67579.0,67574.0,0.043795]
[1729539484304,0.011,67579.0,67574.0,0.074011]
[1729539484606,0.011,67579.0,67575.0,0.00462761]
[1729539484799,0.011,67579.0,67576.0,0.00462761]
[1729539484992,0.011,67579.0,67577.0,0.00462761]
[1729539485189,0.011,67579.0,67578.0,0.00462761]
[1729539485396,0.007,67579.0,67578.0,0.00462761]
[1729539486302,0.074017,67569.0,67557.0,0.25813727]
[1729539486506,0.3608,67564.0,67562.0,0.074023]
[1729539486800,0.3608,67564.0,67557.0,0.26594522]
[1729539486989,0.3608,67564.0,67557.0,0.00780795]
[1729539486990,0.3608,67558.0,67557.0,0.00780795]
[1729539487193,0.3608,67558.0,67554.0,0.074033]
[1729539487793,0.3608,67558.0,67557.0,0.014]
[1729539488206,0.3608,67558.0,67557.0,0.08803]
[1729539489507,0.3628,67558.0,67557.0,0.08803]
[1729539490095,0.3628,67558.0,67557.0,0.014]
[1729539490599,0.3628,67558.0,67557.0,0.028]
[1729539493198,0.3628,67558.0,67557.0,0.10203]
[1729539493403,0.3628,67558.0,67557.0,0.18649254]
[1729539493906,0.3628,67558.0,67557.0,0.11246254]
[1729539494209,0.3628,67558.0,67557.0,0.18649254]
[1729539494394,0.3628,67558.0,67557.0,0.11246254]
[1729539495294,0.3628,67558.0,67557.0,0.18553074]
[1729539496100,0.3628,67558.0,67557.0,0.19293741]
[1729539496300,0.3628,67558.0,67557.0,0.10847487]
[1729539497105,0.3628,67558.0,67557.0,0.18575899]
[1729539497310,0.3628,67558.0,67557.0,0.18575282]
[1729539497608,0.3628,67558.0,67557.0,0.18573852]
[1729539497908,0.3628,67558.0,67557.0,0.18670032]
[1729539498311,0.3628,67558.0,67557.0,0.19132926]
[1729539498498,0.3628,67558.0,67557.0,0.19122021]
[1729539498705,0.3628,67558.0,67557.0,0.11719021]
[1729539499214,0.436828,67558.0,67557.0,0.03262894]
[1729539499610,0.436828,67558.0,67557.0,0.10570441]
[1729539499803,0.797628,67558.0,67557.0,0.11717327]
[1729539500003,0.797628,67558.0,67557.0,0.10569219]
[1729539500202,0.797628,67558.0,67557.0,0.03262894]
[1729539502310,0.797628,67558.0,67557.0,0.028]
[1729539502509,0.797628,67558.0,67557.0,0.03262933]
[1729539504703,0.797628,67558.0,67557.0,0.03062933]
[1729539505111,1.241708,67558.0,67557.0,0.03062933]
[1729539505503,1.241708,67558.0,67557.0,0.02962933]
[1729539506001,1.240708,67558.0,67557.0,0.01662953]
[1729539506209,1.241708,67558.0,67557.0,0.02762953]
[1729539506410,1.240708,67558.0,67557.0,0.02562953]
[1729539506706,1.241708,67558.0,67557.0,0.02562953]
[1729539508116,0.797628,67558.0,67557.0,0.02562953]
[1729539509514,0.797628,67558.0,67557.0,0.02562962]
[1729539510615,0.076028,67558.0,67557.0,0.18346789]
[1729539510811,0.002,67558.0,67557.0,0.11781175]
[1729539511012,0.002,67558.0,67557.0,0.17276882]
[1729539511209,0.002,67558.0,67557.0,0.18447878]
[1729539511517,0.002,67558.0,67557.0,0.25761662]
[1729539512006,0.002,67558.0,67557.0,0.18358662]
[1729539512203,0.002,67558.0,67557.0,0.11044878]
[1729539513613,0.002,67558.0,67557.0,0.18447878]
[1729539513813,0.002,67558.0,67557.0,0.18441526]
[1729539514409,0.002,67558.0,67557.0,0.27215097]
[1729539514609,0.002,67558.0,67557.0,0.18441526]
[1729539516617,0.002,67558.0,67557.0,0.28584532]
[1729539518521,0.002,67558.0,67557.0,0.18441526]
[1729539519120,0.002,67558.0,67557.0,0.19182194]
[1729539519719,0.076028,67558.0,67557.0,0.11779194]
[1729539520617,0.076028,67558.0,67557.0,0.10575564]